fUST/lending_fUST_20251201
["ID","MTS","AMOUNT","RATE_DAILY","PERIOD"]
[395215890,1764547866640,-2099.32,0.00014794,2]
[395215891,1764547866650,-500.0,0.00014794,2]
[395215892,1764547866663,-177.86319312,0.00014794,2]
[395215893,1764547866673,-500.0,0.00014794,2]
[395215894,1764547866683,-1092.88,0.00014794,2]
[395215895,1764547866693,-1396.65,0.00014794,2]
[395215896,1764547866708,-500.0,0.00014794,2]
[395215897,1764547866718,-500.0,0.00014794,2]
[395215898,1764547866728,-500.0,0.00014794,2]
[395215899,1764547866738,-500.0,0.00014794,2]
[395215900,1764547866747,-727.4,0.00014794,2]
[395215901,1764547866757,-500.0,0.00014794,2]
[395215902,1764547866766,-3444.94,0.00014794,2]
[395215903,1764547866775,-4746.48,0.00014794,2]
[395215904,1764547866786,-500.0,0.00014794,2]
[395215905,1764547866795,-500.0,0.00014794,2]
[395215906,1764547866804,-507.22548729,0.00014794,2]
[395215907,1764547866813,-500.0,0.00014794,2]
[395215908,1764547866823,-1723.58,0.00014794,2]
[395215909,1764547866832,-500.0,0.00014794,2]
[395215910,1764547866842,-500.0,0.00014794,2]
[395215911,1764547866851,-17065.91,0.00014794,2]
[395215912,1764547866861,-671.24,0.00014794,2]
[395215913,1764547866870,-500.0,0.00014794,2]
[395215914,1764547866879,-694.26,0.00014794,2]
[395215915,1764547866888,-1136.2,0.00014794,2]
[395215916,1764547866897,-500.0,0.00014794,2]
[395215917,1764547866908,-1743.96,0.00014794,2]
[395215918,1764547866917,-636.16,0.00014794,2]
[395215919,1764547866927,-1367.62,0.00014794,2]
[395215920,1764547866936,-611.96,0.00014794,2]
[395215921,1764547866945,-500.0,0.00014794,2]
[395215922,1764547866960,-1120.27,0.00014794,2]
[395215923,1764547866969,-500.0,0.00014794,2]
[395215924,1764547866979,-500.0,0.00014794,2]
[395215925,1764547866989,-500.0,0.00014794,2]
[395215926,1764547866999,-500.0,0.00014794,2]
[395215927,1764547867009,-791.39,0.00014794,2]
[395215928,1764547867020,-500.0,0.00014794,2]
[395215929,1764547867030,-1726.06,0.00014794,2]
[395215930,1764547867042,-4332.05,0.00014794,2]
[395215931,1764547867052,-1547.89,0.00014794,2]
[395215932,1764547867062,-929.72,0.00014794,2]
[395215933,1764547867071,-219.46456338,0.00014794,2]
[395215934,1764547867081,-1617.93,0.00014794,2]
[395215935,1764547867091,-500.0,0.00014794,2]
[395215936,1764547867101,-500.0,0.00014794,2]
[395215937,1764547867111,-926.66,0.00014794,2]
[395215938,1764547867121,-500.0,0.00014794,2]
[395215939,1764547867131,-1809.43,0.00014794,2]
[395215940,1764547867141,-3646.16,0.00014794,2]
[395215941,1764547867151,-2240.8,0.00014794,2]
[395215942,1764547867161,-500.0,0.00014794,2]
[395215943,1764547867171,-6168.37,0.00014794,2]
[395215944,1764547867180,-500.0,0.00014794,2]
[395215945,1764547867189,-500.0,0.00014794,2]
[395215946,1764547867203,-500.0,0.00014794,2]
[395215947,1764547867212,-1223.9,0.00014794,2]
[395215948,1764547867222,-624.33,0.00014794,2]
[395215949,1764547867232,-3000.95,0.00014794,2]
[395215950,1764547867242,-500.0,0.00014794,2]
[395215951,1764547867251,-1817.5,0.00014794,2]
[395215952,1764547867262,-500.0,0.00014794,2]
[395215953,1764547867273,-871.05,0.00014794,2]
[395215954,1764547867285,-500.0,0.00014794,2]
[395215955,1764547867295,-2947.59,0.00014794,2]
[395215956,1764547867304,-1576.87,0.00014794,2]
[395215957,1764547867314,-500.0,0.00014794,2]
[395215958,1764547867324,-500.0,0.00014794,2]
[395215959,1764547867335,-500.0,0.00014794,2]
[395215960,1764547867345,-1139.11,0.00014794,2]
[395215961,1764547867355,-500.0,0.00014794,2]
[395215962,1764547867365,-500.0,0.00014794,2]
[395215963,1764547867375,-500.0,0.00014794,2]
[395215964,1764547867385,-3342.48,0.00014794,2]
[395215965,1764547867396,-500.0,0.00014794,2]
[395215966,1764547867406,-801.41,0.00014794,2]
[395215967,1764547867416,-500.0,0.00014794,2]
[395215968,1764547867426,-1908.36,0.00014794,2]
[395215969,1764547867435,-1153.9,0.00014794,2]
[395215970,1764547867445,-500.0,0.00014794,2]
[395215971,1764547867463,-500.0,0.00014794,2]
[395215972,1764547867473,-582.81,0.00014794,2]
[395215973,1764547867482,-903.16,0.00014794,2]
[395215974,1764547867492,-1011.14,0.00014794,2]
[395215975,1764547867501,-500.0,0.00014794,2]
[395215976,1764547867511,-570.4,0.00014794,2]
[395215977,1764547867520,-1765.06,0.00014794,2]
[395215978,1764547867530,-2454.71,0.00014794,2]
[395215979,1764547867539,-790.07,0.00014794,2]
[395215980,1764547867549,-3314.57,0.00014794,2]
[395215981,1764547867559,-500.0,0.00014794,2]
[395215982,1764547867568,-2219.39,0.00014794,2]
[395215983,1764547867578,-1875.88,0.00014794,2]
[395215984,1764547867587,-2313.85,0.00014794,2]
[395215985,1764547867597,-500.0,0.00014794,2]
[395215986,1764547867607,-5221.19,0.00014794,2]
[395215987,1764547867616,-3048.03,0.00014794,2]
[395215988,1764547867634,-3145.78,0.00014794,2]
[395215989,1764547867643,-10397.32,0.00014794,2]
[395215990,1764547867652,-500.0,0.00014794,2]
[395215991,1764547867661,-760.25,0.00014794,2]
[395215992,1764547867671,-500.0,0.00014794,2]
[395215993,1764547867680,-209.29514456,0.00014794,2]
[395215994,1764547867690,-500.0,0.00014794,2]
[395215995,1764547867704,-500.0,0.00014794,2]
[395215996,1764547867714,-2989.63,0.00014794,2]
[395215997,1764547867724,-837.63,0.00014794,2]
[395215998,1764547867734,-984.98,0.00014794,2]
[395215999,1764547867744,-500.0,0.00014794,2]
[395216000,1764547867754,-1081.9,0.00014794,2]
[395216001,1764547867763,-500.0,0.00014794,2]
[395216002,1764547867772,-5982.17,0.00014794,2]
[395216003,1764547867782,-1807.97,0.00014794,2]
[395216004,1764547867791,-500.0,0.00014794,2]
[395216005,1764547867801,-8291.1,0.00014794,2]
[395216006,1764547867810,-500.0,0.00014794,2]
[395216007,1764547867819,-3531.24,0.00014794,2]
[395216008,1764547867829,-1985.68,0.00014794,2]
[395216009,1764547867838,-500.0,0.00014794,2]
[395216010,1764547867847,-5538.13,0.00014794,2]
[395216011,1764547867856,-500.0,0.00014794,2]
[395216012,1764547867865,-500.0,0.00014794,2]
[395216013,1764547867875,-500.0,0.00014794,2]
[395216014,1764547867884,-500.0,0.00014794,2]
[395216015,1764547867893,-1615.27,0.00014794,2]
[395216016,1764547867903,-500.0,0.00014794,2]
[395216017,1764547867912,-500.0,0.00014794,2]
[395216018,1764547867921,-500.0,0.00014794,2]
[395216019,1764547867931,-500.0,0.00014794,2]
[395216020,1764547867940,-1762.42,0.00014794,2]
[395216021,1764547867955,-575.88610719,0.00014794,2]
[395216022,1764547867964,-2706.0,0.00014794,2]
[395216023,1764547867974,-2549.68,0.00014794,2]
[395216024,1764547867983,-893.99,0.00014794,2]
[395216025,1764547867993,-500.0,0.00014794,2]
[395216026,1764547868003,-500.0,0.00014794,2]
[395216027,1764547868014,-522.06,0.00014794,2]
[395216028,1764547868024,-500.0,0.00014794,2]
[395216029,1764547868034,-500.0,0.00014794,2]
[395216030,1764547868045,-500.0,0.00014794,2]
[395216031,1764547868055,-500.0,0.00014794,2]
[395216032,1764547868066,-1167.41,0.00014794,2]
[395216033,1764547868076,-2706.58,0.00014794,2]
[395216034,1764547868086,-1888.96,0.00014794,2]
[395216035,1764547868096,-501.98,0.00014794,2]
[395216036,1764547868107,-765.97,0.00014794,2]
[395216037,1764547868118,-1636.34,0.00014794,2]
[395216038,1764547868129,-500.0,0.00014794,2]
[395216039,1764547868139,-739.84,0.00014794,2]
[395216040,1764547868150,-931.35,0.00014794,2]
[395216041,1764547868160,-3871.71,0.00014794,2]
[395216042,1764547868171,-500.0,0.00014794,2]
[395216043,1764547868182,-2563.46,0.00014794,2]
[395216044,1764547868192,-666.7,0.00014794,2]
[395216045,1764547868207,-2450.73,0.00014794,2]
[395216046,1764547868217,-887.52,0.00014794,2]
[395216047,1764547868228,-5592.64,0.00014794,2]
[395216048,1764547868238,-500.0,0.00014794,2]
[395216049,1764547868249,-500.0,0.00014795,2]
[395216050,1764547868258,-1146.04122274,0.00014795,2]
[395216051,1764547868268,-861.07309602,0.00014795,2]
[395216052,1764547868278,-451.07355338,0.00014795,2]
[395216053,1764547868290,-1500.0,0.00014795,2]
[395216054,1764547868301,-1084.11693241,0.00014795,2]
[395216055,1764547868311,-1500.0,0.00014795,2]
[395216056,1764547868320,-1500.0,0.00014795,2]
[395216057,1764547868331,-899.02876412,0.00014795,2]
[395216058,1764547868341,-1500.0,0.00014795,2]
[395216059,1764547868351,-1020.1161994,0.00014795,2]
[395216060,1764547868362,-1500.0,0.00014795,2]
[395216061,1764547868372,-485.24372377,0.00014795,2]
[395216062,1764547868382,-1500.0,0.00014795,2]
[395216063,1764547868393,-1442.82207776,0.00014795,2]
[395216064,1764547868404,-1458.74396004,0.00014795,2]
[395216065,1764547868415,-1125.44570124,0.00014795,2]
[395216066,1764547868425,-1500.0,0.00014795,2]
[395216067,1764547868435,-1500.0,0.00014795,2]
[395216068,1764547868446,-1500.0,0.00014795,2]
[395216069,1764547868463,-1500.0,0.00014795,2]
[395216070,1764547868473,-1500.0,0.00014795,2]
[395216071,1764547868483,-1500.0,0.00014795,2]
[395216072,1764547868493,-1500.0,0.00014795,2]
[395216073,1764547868503,-1500.0,0.00014795,2]
[395216074,1764547868513,-1500.0,0.00014795,2]
[395216075,1764547868523,-1433.84746382,0.00014795,2]
[395216076,1764547868533,-1500.0,0.00014795,2]
[395216077,1764547868543,-477.85303643,0.00014795,2]
[395216078,1764547868566,-1022.14696357,0.00014795,2]
[395216079,1764547868578,-1184.30933232,0.00014795,2]
[395216134,1764549031766,-399.89713188,8.07e-05,2]
[395216135,1764549031778,-399.89713188,8.152e-05,2]
[395216136,1764549031790,-399.89713188,8.234e-05,2]
[395216137,1764549031803,-219.0,8.234e-05,2]
[395216139,1764549031812,-194.15582094,8.359e-05,2]
[395216141,1764549031822,-174.89713188,9.104e-05,2]
[395216143,1764549031831,-229.10386871,0.00010359,2]
[395216145,1764549031841,-416.5339411,0.00010959,2]
[395216147,1764549031850,-264.05191648,0.00012359,2]
[395216149,1764549031861,-353.67603643,0.00012865,2]
[395216151,1764549031872,-219.58334798,0.00013172,2]
[395216153,1764549031882,-500.0,0.00013269,2]
[395216155,1764549031891,-203.34624211,0.00013269,2]
[395216157,1764549031901,-431.92459252,0.00013269,2]
[395216159,1764549031910,-378.79841143,0.00013269,2]
[395216161,1764549031921,-424.71012744,0.00013269,2]
[395216163,1764549031930,-50000.0,0.0001327,2]
[395216165,1764549031940,-292.701,0.00013272,2]
[395216167,1764549031951,-500.0,0.00013272,2]
[395216168,1764549031960,-500.0,0.00013272,2]
[395216170,1764549031971,-500.0,0.00013273,2]
[395216173,1764549031980,-500.0,0.00013273,2]
[395216175,1764549031990,-500.0,0.00013273,2]
[395216177,1764549031999,-500.0,0.00013273,2]
[395216179,1764549032010,-500.0,0.00013273,2]
[395216180,1764549032020,-500.0,0.00013273,2]
[395216182,1764549032029,-38708.89,0.00013398,2]
[395216185,1764549032039,-500.0,0.00013496,2]
[395216187,1764549032049,-500.0,0.00013497,2]
[395216188,1764549032058,-500.0,0.00013497,2]
[395216191,1764549032068,-500.0,0.00013497,2]
[395216192,1764549032078,-500.0,0.00013497,2]
[395216195,1764549032088,-500.0,0.00013497,2]
[395216197,1764549032098,-500.0,0.00013497,2]
[395216198,1764549032107,-500.0,0.00013497,2]
[395216201,1764549032122,-500.0,0.00013597,2]
[395216203,1764549032132,-300.0,0.00013673,2]
[395216205,1764549032142,-300.0,0.00013692,2]
[395216207,1764549032155,-300.0,0.00013692,2]
[395216208,1764549032165,-300.0,0.00013692,2]
[395216211,1764549032177,-300.0,0.00013692,2]
[395216213,1764549032187,-300.0,0.00013692,2]
[395216215,1764549032197,-300.0,0.00013692,2]
[395216217,1764549032207,-300.0,0.00013692,2]
[395216219,1764549032218,-300.0,0.00013692,2]
[395216221,1764549032228,-300.0,0.00013692,2]
[395216223,1764549032240,-300.0,0.00013692,2]
[395216225,1764549032250,-300.0,0.00013692,2]
[395216227,1764549032259,-300.0,0.00013692,2]
[395216229,1764549032269,-300.0,0.00013692,2]
[395216231,1764549032279,-300.0,0.00013692,2]
[395216233,1764549032289,-300.0,0.00013692,2]
[395216234,1764549032298,-500.0,0.00013698,2]
[395216235,1764549032308,-500.0,0.00013698,2]
[395216236,1764549032319,-394.35859462,0.00013698,2]
[395216237,1764549032329,-500.0,0.00013698,2]
[395216238,1764549032340,-500.0,0.00013698,2]
[395216239,1764549032350,-534.43,0.00013698,2]
[395216240,1764549032364,-500.0,0.00013698,2]
[395216241,1764549032374,-500.0,0.00013698,2]
[395216242,1764549032384,-441.90047729,0.00013698,2]
[395216243,1764549032395,-500.0,0.00013698,2]
[395216244,1764549032405,-750.92,0.00013698,2]
[395216245,1764549032415,-500.0,0.00013698,2]
[395216246,1764549032426,-500.0,0.00013698,2]
[395216247,1764549032436,-611.8,0.00013698,2]
[395216248,1764549032446,-500.0,0.00013698,2]
[395216249,1764549032456,-193.05830989,0.00013698,2]
[395216250,1764549032465,-500.0,0.00013698,2]
[395216251,1764549032476,-500.0,0.00013698,2]
[395216252,1764549032490,-500.0,0.00013698,2]
[395216253,1764549032502,-500.0,0.00013698,2]
[395216254,1764549032511,-500.0,0.00013698,2]
[395216255,1764549032522,-500.0,0.00013698,2]
[395216256,1764549032533,-500.0,0.00013698,2]
[395216257,1764549032545,-500.0,0.00013698,2]
[395216258,1764549032554,-500.0,0.00013698,2]
[395216259,1764549032564,-572.23,0.00013698,2]
[395216260,1764549032576,-500.0,0.00013698,2]
[395216261,1764549032585,-500.0,0.00013698,2]
[395216262,1764549032594,-500.0,0.00013698,2]
[395216263,1764549032606,-500.0,0.00013698,2]
[395216264,1764549032621,-500.0,0.00013698,2]
[395216265,1764549032630,-500.0,0.00013698,2]
[395216266,1764549032640,-690.03,0.00013698,2]
[395216267,1764549032650,-500.0,0.00013698,2]
[395216268,1764549032660,-500.0,0.00013698,2]
[395216269,1764549032670,-624.54,0.00013698,2]
[395216270,1764549032680,-500.0,0.00013698,2]
[395216272,1764549032690,-500.0,0.00013698,2]
[395216274,1764549032700,-500.0,0.00013698,2]
[395216276,1764549032711,-500.0,0.00013698,2]
[395216278,1764549032721,-500.0,0.00013698,2]
[395216280,1764549032731,-500.0,0.00013698,2]
[395216282,1764549032741,-500.0,0.00013698,2]
[395216284,1764549032749,-500.0,0.00013698,2]
[395216286,1764549032759,-500.0,0.00013698,2]
[395216288,1764549032768,-500.0,0.00013698,2]
[395216290,1764549032777,-500.0,0.00013698,2]
[395216292,1764549032787,-500.0,0.00013698,2]
[395216294,1764549032796,-516.75,0.00013698,2]
[395216295,1764549032806,-500.0,0.00013698,2]
[395216298,1764549032817,-500.0,0.00013698,2]
[395216299,1764549032828,-500.0,0.00013698,2]
[395216301,1764549032837,-500.0,0.00013698,2]
[395216303,1764549032848,-500.0,0.00013698,2]
[395216305,1764549032857,-500.0,0.00013698,2]
[395216307,1764549032871,-500.0,0.00013698,2]
[395216309,1764549032881,-500.0,0.00013698,2]
[395216311,1764549032890,-639.25,0.00013698,2]
[395216313,1764549032900,-500.0,0.00013698,2]
[395216314,1764549032911,-500.0,0.00013698,2]
[395216316,1764549032920,-500.0,0.00013698,2]
[395216318,1764549032930,-500.0,0.00013698,2]
[395216320,1764549032940,-733.74,0.00013698,2]
[395216322,1764549032950,-500.0,0.00013698,2]
[395216324,1764549032959,-1607.3,0.00013698,2]
[395216326,1764549032969,-500.0,0.00013698,2]
[395216328,1764549032980,-500.0,0.00013698,2]
[395216330,1764549032991,-500.0,0.00013698,2]
[395216332,1764549033001,-531.4,0.00013698,2]
[395216334,1764549033010,-819.24,0.00013698,2]
[395216336,1764549033020,-500.0,0.00013698,2]
[395216338,1764549033029,-749.66,0.00013698,2]
[395216340,1764549033038,-500.0,0.00013698,2]
[395216342,1764549033048,-1871.94,0.00013698,2]
[395216344,1764549033057,-500.0,0.00013698,2]
[395216346,1764549033066,-500.0,0.00013698,2]
[395216348,1764549033076,-500.0,0.00013698,2]
[395216350,1764549033086,-538.17,0.00013698,2]
[395216352,1764549033095,-500.0,0.00013698,2]
[395216354,1764549033104,-500.0,0.00013698,2]
[395216356,1764549033116,-500.0,0.00013698,2]
[395216358,1764549033125,-500.0,0.00013698,2]
[395216359,1764549033134,-500.0,0.00013698,2]
[395216360,1764549033144,-500.0,0.00013698,2]
[395216361,1764549033154,-500.0,0.00013698,2]
[395216362,1764549033163,-973.46,0.00013698,2]
[395216363,1764549033173,-626.52,0.00013698,2]
[395216364,1764549033183,-500.0,0.00013698,2]
[395216365,1764549033192,-500.0,0.00013698,2]
[395216366,1764549033202,-500.0,0.00013698,2]
[395216367,1764549033212,-500.0,0.00013698,2]
[395216368,1764549033221,-500.0,0.00013698,2]
[395216370,1764549033233,-500.0,0.00013698,2]
[395216372,1764549033244,-1432.46,0.00013698,2]
[395216373,1764549033254,-753.96,0.00013698,2]
[395216374,1764549033264,-640.64,0.00013698,2]
[395216375,1764549033272,-921.21,0.00013698,2]
[395216376,1764549033282,-500.0,0.00013698,2]
[395216377,1764549033292,-500.0,0.00013698,2]
[395216378,1764549033301,-500.0,0.00013698,2]
[395216379,1764549033311,-500.0,0.00013698,2]
[395216380,1764549033321,-613.28,0.00013698,2]
[395216381,1764549033330,-968.92,0.00013698,2]
[395216382,1764549033339,-588.54,0.00013698,2]
[395216383,1764549033348,-500.0,0.00013698,2]
[395216384,1764549033357,-500.0,0.00013698,2]
[395216385,1764549033370,-500.0,0.00013698,2]
[395216386,1764549033380,-170.9667367,0.00013698,2]
[395216387,1764549033392,-554.78,0.00013698,2]
[395216388,1764549033402,-500.0,0.00013698,2]
[395216389,1764549033412,-312.56658501,0.00013698,2]
[395216390,1764549033423,-500.0,0.00013698,2]
[395216391,1764549033432,-1812.23,0.00013698,2]
[395216392,1764549033442,-500.0,0.00013698,2]
[395216393,1764549033451,-500.0,0.00013698,2]
[395216394,1764549033461,-500.0,0.00013698,2]
[395216395,1764549033470,-500.0,0.00013698,2]
[395216396,1764549033480,-872.58,0.00013698,2]
[395216397,1764549033493,-1309.26,0.00013698,2]
[395216398,1764549033502,-500.0,0.00013698,2]
[395216399,1764549033512,-500.0,0.00013698,2]
[395216400,1764549033522,-658.36,0.00013698,2]
[395216401,1764549033533,-530.77,0.00013698,2]
[395216402,1764549033542,-500.0,0.00013698,2]
[395216403,1764549033555,-843.55,0.00013698,2]
[395216404,1764549033566,-500.0,0.00013698,2]
[395216405,1764549033575,-500.0,0.00013698,2]
[395216406,1764549033585,-898.01,0.00013698,2]
[395216407,1764549033594,-500.0,0.00013698,2]
[395216408,1764549033604,-2808.38,0.00013698,2]
[395216409,1764549033615,-500.0,0.00013698,2]
[395216410,1764549033625,-1259.55,0.00013698,2]
[395216411,1764549033634,-500.0,0.00013698,2]
[395216412,1764549033646,-500.0,0.00013698,2]
[395216413,1764549033656,-500.0,0.00013698,2]
[395216414,1764549033667,-500.0,0.00013698,2]
[395216415,1764549033677,-546.33,0.00013698,2]
[395216416,1764549033689,-500.0,0.00013698,2]
[395216417,1764549033698,-1410.34,0.00013698,2]
[395216418,1764549033708,-601.87,0.00013698,2]
[395216419,1764549033718,-500.0,0.00013698,2]
[395216420,1764549033730,-699.94,0.00013698,2]
[395216421,1764549033742,-500.0,0.00013698,2]
[395216422,1764549033753,-500.0,0.00013698,2]
[395216423,1764549033762,-500.0,0.00013698,2]
[395216424,1764549033772,-500.0,0.00013698,2]
[395216425,1764549033782,-891.63,0.00013698,2]
[395216426,1764549033792,-500.0,0.00013698,2]
[395216427,1764549033801,-1548.78,0.00013698,2]
[395216428,1764549033811,-500.0,0.00013698,2]
[395216429,1764549033821,-500.0,0.00013698,2]
[395216430,1764549033831,-500.0,0.00013698,2]
[395216431,1764549033843,-500.0,0.00013698,2]
[395216432,1764549033854,-500.0,0.00013698,2]
[395216433,1764549033865,-736.94,0.00013698,2]
[395216434,1764549033875,-852.39,0.00013698,2]
[395216435,1764549033885,-500.0,0.00013698,2]
[395216436,1764549033894,-500.0,0.00013698,2]
[395216437,1764549033904,-500.0,0.00013698,2]
[395216438,1764549033914,-500.0,0.00013698,2]
[395216439,1764549033924,-500.0,0.00013698,2]
[395216440,1764549033933,-500.0,0.00013698,2]
[395216441,1764549033943,-500.0,0.00013698,2]
[395216442,1764549033953,-500.0,0.00013698,2]
[395216443,1764549033962,-500.0,0.00013698,2]
[395216444,1764549033972,-500.0,0.00013698,2]
[395216445,1764549033983,-756.62,0.00013698,2]
[395216446,1764549033993,-500.0,0.00013698,2]
[395216447,1764549034003,-2795.56,0.00013698,2]
[395216448,1764549034249,-500.0,0.00013698,2]
[395216449,1764549034259,-873.32,0.00013698,2]
[395216450,1764549034268,-596.25,0.00013698,2]
[395216451,1764549034277,-670.02,0.00013698,2]
[395216452,1764549034287,-500.0,0.00013698,2]
[395216453,1764549034297,-500.0,0.00013698,2]
[395216454,1764549034306,-500.0,0.00013698,2]
[395216455,1764549034316,-512.71,0.00013698,2]
[395216456,1764549034325,-500.0,0.00013698,2]
[395216457,1764549034335,-1278.76,0.00013698,2]
[395216458,1764549034345,-1661.96,0.00013698,2]
[395216459,1764549034354,-531.87450658,0.00013698,2]
[395216460,1764549034365,-500.0,0.00013698,2]
[395216461,1764549034374,-215.56668671,0.00013698,2]
[395216462,1764549034384,-707.75,0.00013698,2]
[395216463,1764549034393,-1486.04,0.00013698,2]
[395216464,1764549034403,-500.0,0.00013698,2]
[395216465,1764549034415,-500.0,0.00013698,2]
[395216466,1764549034424,-500.0,0.00013698,2]
[395216467,1764549034434,-1527.92,0.00013698,2]
[395216468,1764549034444,-500.0,0.00013698,2]
[395216469,1764549034453,-1053.56,0.00013698,2]
[395216470,1764549034463,-500.0,0.00013698,2]
[395216471,1764549034472,-500.0,0.00013698,2]
[395216472,1764549034482,-500.0,0.00013698,2]
[395216473,1764549034491,-1495.43,0.00013698,2]
[395216474,1764549034505,-500.0,0.00013698,2]
[395216475,1764549034515,-500.0,0.00013698,2]
[395216476,1764549034524,-500.0,0.00013698,2]
[395216477,1764549034534,-795.48,0.00013698,2]
[395216478,1764549034544,-737.32,0.00013698,2]
[395216479,1764549034555,-500.0,0.00013698,2]
[395216480,1764549034565,-549.62,0.00013698,2]
[395216481,1764549034576,-3065.1,0.00013698,2]
[395216482,1764549034586,-500.0,0.00013698,2]
[395216483,1764549034597,-500.0,0.00013698,2]
[395216484,1764549034606,-1356.76,0.00013698,2]
[395216485,1764549034619,-1340.41,0.00013698,2]
[395216486,1764549034628,-1356.76,0.00013698,2]
[395216487,1764549034638,-1356.76,0.00013698,2]
[395216488,1764549034648,-1356.76,0.00013698,2]
[395216489,1764549034658,-1356.76,0.00013698,2]
[395216490,1764549034668,-500.0,0.00013698,2]
[395216491,1764549034677,-921.86,0.00013698,2]
[395216492,1764549034690,-1356.76,0.00013698,2]
[395216493,1764549034701,-1356.76,0.00013698,2]
[395216494,1764549034711,-1356.76,0.00013698,2]
[395216495,1764549034722,-1356.76,0.00013698,2]
[395216496,1764549034732,-1356.76,0.00013698,2]
[395216497,1764549034742,-1356.76,0.00013698,2]
[395216498,1764549034752,-500.0,0.00013698,2]
[395216499,1764549034762,-1356.76,0.00013698,2]
[395216500,1764549034772,-1356.76,0.00013698,2]
[395216501,1764549034781,-1356.76,0.00013698,2]
[395216502,1764549034794,-1356.76,0.00013698,2]
[395216503,1764549034804,-1356.76,0.00013698,2]
[395216504,1764549034814,-1356.76,0.00013698,2]
[395216505,1764549034826,-500.0,0.00013698,2]
[395216506,1764549034835,-1356.76,0.00013698,2]
[395216507,1764549034846,-500.0,0.00013698,2]
[395216508,1764549034856,-1356.76,0.00013698,2]
[395216509,1764549034870,-1356.76,0.00013698,2]
[395216510,1764549034880,-1356.76,0.00013698,2]
[395216511,1764549034891,-1356.76,0.00013698,2]
[395216512,1764549034903,-1356.76,0.00013698,2]
[395216513,1764549034914,-1356.84275085,0.00013698,2]
[395216514,1764549034924,-500.0,0.00013698,2]
[395216515,1764549034934,-500.0,0.00013698,2]
[395216516,1764549034944,-626.07,0.00013698,2]
[395216517,1764549034954,-600.53,0.00013698,2]
[395216518,1764549034963,-2727.24,0.00013698,2]
[395216519,1764549034973,-736.03,0.00013698,2]
[395216520,1764549034983,-500.0,0.00013698,2]
[395216521,1764549034993,-4427.51,0.00013698,2]
[395216522,1764549035004,-500.0,0.00013698,2]
[395216523,1764549035014,-1380.64,0.00013698,2]
[395216524,1764549035023,-13510.51,0.00013698,2]
[395216525,1764549035033,-500.0,0.00013698,2]
[395216526,1764549035042,-500.0,0.00013698,2]
[395216527,1764549035052,-575.86,0.00013698,2]
[395216528,1764549035064,-500.0,0.00013698,2]
[395216529,1764549035074,-500.0,0.00013698,2]
[395216530,1764549035084,-500.0,0.00013698,2]
[395216531,1764549035093,-532.78,0.00013698,2]
[395216532,1764549035103,-1082.7,0.00013698,2]
[395216533,1764549035112,-500.0,0.00013698,2]
[395216534,1764549035121,-500.0,0.00013698,2]
[395216535,1764549035130,-1280.86,0.00013698,2]
[395216536,1764549035140,-500.0,0.00013698,2]